[Event "Titled Tuesday Blitz January 17 Early 2023"]
[White "Djokovic, Nebojsa"]
[Black "Cramling Bellon, Anna"]
[WhiteFideId "938300"]
[BlackFideId "32009232"]
[WhiteElo "2119"]
[BlackElo "2043"]
[Result "1-0"]
[Round "01"]
[TimeControl "180+2"]
[Date "2023.01.17"]
[WhiteClock "0:01:02"]
[BlackClock "0:00:01"]

1. e4 {[%clk 0:03:00]}  c5 {[%clk 0:02:59]} 2. Nf3 {[%clk 0:02:59]}  e6 {[%clk 0:02:59]} 3. d4 {[%clk 0:03:00]}  cxd4 {[%clk 0:03:00]} 4. Nxd4 {[%clk 0:03:01]}  Nf6 {[%clk 0:03:00]} 5. Nc3 {[%clk 0:03:01]}  Nc6 {[%clk 0:03:00]} 6. Ndb5 {[%clk 0:03:02]}  d6 {[%clk 0:03:01]} 7. Bf4 {[%clk 0:03:02]}  e5 {[%clk 0:03:01]} 8. Bg5 {[%clk 0:03:02]}  a6 {[%clk 0:03:02]} 9. Na3 {[%clk 0:03:02]}  b5 {[%clk 0:03:02]} 10. Nd5 {[%clk 0:03:03]}  Be7 {[%clk 0:03:03]} 11. Bxf6 {[%clk 0:03:04]}  Bxf6 {[%clk 0:03:04]} 12. c4 {[%clk 0:03:04]}  b4 {[%clk 0:03:03]} 13. Nc2 {[%clk 0:03:04]}  a5 {[%clk 0:03:02]} 14. b3 {[%clk 0:03:04]}  Bg5 {[%clk 0:02:55]} 15. g3 {[%clk 0:03:04]}  Be6 {[%clk 0:02:55]} 16. h4 {[%clk 0:03:01]}  Bh6 {[%clk 0:02:55]} 17. Bg2 {[%clk 0:03:00]}  O-O {[%clk 0:02:55]} 18. O-O {[%clk 0:02:59]}  f5 {[%clk 0:02:46]} 19. exf5 {[%clk 0:02:53]}  Bxf5 {[%clk 0:02:46]} 20. Nde3 {[%clk 0:02:43]}  Bxe3 {[%clk 0:01:43]} 21. fxe3 {[%clk 0:02:31]}  Bxc2 {[%clk 0:01:43]} 22. Qxc2 {[%clk 0:02:26]}  Rc8 {[%clk 0:01:40]} 23. Rxf8+ {[%clk 0:02:22]}  Qxf8 {[%clk 0:01:39]} 24. Rf1 {[%clk 0:02:23]}  Qe7 {[%clk 0:01:38]} 25. Bd5+ {[%clk 0:02:22]}  Kh8 {[%clk 0:01:35]} 26. Rf7 {[%clk 0:02:22]}  Qe8 {[%clk 0:01:30]} 27. Qf5 {[%clk 0:02:08]}  h6 {[%clk 0:00:34]} 28. Qg6 {[%clk 0:01:24]}  Qg8 {[%clk 0:00:19]} 29. Rc7 {[%clk 0:01:21]}  Qf8 {[%clk 0:00:06]} 30. Rxc6 {[%clk 0:01:17]}  Rxc6 {[%clk 0:00:05]} 31. Bxc6 {[%clk 0:01:17]}  Qe7 {[%clk 0:00:02]} 32. Be4 {[%clk 0:01:13]}  Kg8 {[%clk 0:00:02]} 33. Bd5+ {[%clk 0:01:13]}  Kh8 {[%clk 0:00:02]} 34. Qf7 {[%clk 0:01:06]}  Qd8 {[%clk 0:00:01]} 35. Be4 {[%clk 0:01:02]}  Qb6 {[%clk 0:00:01]} 36. Qf8# {[%clk 0:01:02]} 1-0


[Site "https://www.chess.com"]

[Event "Titled Tuesday Blitz January 17 Early 2023"]
[White "Garrido, Denis"]
[Black "Korchmar, Vasiliy"]
[WhiteFideId "601217"]
[BlackFideId "24131750"]
[WhiteElo "2205"]
[BlackElo "2438"]
[Result "0-1"]
[Round "01"]
[TimeControl "180+2"]
[Date "2023.01.17"]
[WhiteClock "0:00:13"]
[BlackClock "0:01:21"]

1. e4 {[%clk 0:02:59]}  c5 {[%clk 0:02:59]} 2. Nf3 {[%clk 0:02:58]}  d6 {[%clk 0:03:00]} 3. d4 {[%clk 0:02:58]}  cxd4 {[%clk 0:03:01]} 4. Nxd4 {[%clk 0:02:59]}  Nf6 {[%clk 0:03:01]} 5. Nc3 {[%clk 0:02:59]}  Nc6 {[%clk 0:03:02]} 6. Bg5 {[%clk 0:02:59]}  Bd7 {[%clk 0:03:02]} 7. Nxc6 {[%clk 0:02:56]}  bxc6 {[%clk 0:03:01]} 8. Bc4 {[%clk 0:02:56]}  e6 {[%clk 0:02:46]} 9. Qe2 {[%clk 0:02:55]}  Be7 {[%clk 0:02:42]} 10. Bb3 {[%clk 0:02:36]}  O-O {[%clk 0:02:24]} 11. h4 {[%clk 0:02:23]}  d5 {[%clk 0:02:21]} 12. e5 {[%clk 0:02:21]}  Ne8 {[%clk 0:02:21]} 13. Bxe7 {[%clk 0:02:03]}  Qxe7 {[%clk 0:02:21]} 14. O-O-O {[%clk 0:02:03]}  c5 {[%clk 0:02:20]} 15. Bxd5 {[%clk 0:01:08]}  exd5 {[%clk 0:02:17]} 16. Nxd5 {[%clk 0:01:09]}  Qe6 {[%clk 0:02:08]} 17. f4 {[%clk 0:01:00]}  Bc6 {[%clk 0:02:01]} 18. Ne3 {[%clk 0:01:00]}  Qxa2 {[%clk 0:01:58]} 19. Nf5 {[%clk 0:00:47]}  Kh8 {[%clk 0:01:39]} 20. Rh3 {[%clk 0:00:27]}  Rb8 {[%clk 0:01:38]} 21. Kd2 {[%clk 0:00:22]}  Rxb2 {[%clk 0:01:37]} 22. Rc1 {[%clk 0:00:19]}  Bd7 {[%clk 0:01:28]} 23. Qe4 {[%clk 0:00:17]}  Bxf5 {[%clk 0:01:26]} 24. Qxf5 {[%clk 0:00:18]}  Nc7 {[%clk 0:01:26]} 25. h5 {[%clk 0:00:17]}  h6 {[%clk 0:01:25]} 26. Rg3 {[%clk 0:00:17]}  Ne6 {[%clk 0:01:26]} 27. Kd1 {[%clk 0:00:16]}  Rd8+ {[%clk 0:01:26]} 28. Ke1 {[%clk 0:00:16]}  Qd5 {[%clk 0:01:26]} 29. Rd3 {[%clk 0:00:15]}  Qxg2 {[%clk 0:01:24]} 30. Rxd8+ {[%clk 0:00:14]}  Nxd8 {[%clk 0:01:25]} 31. Qd7 {[%clk 0:00:14]}  Qg1+ {[%clk 0:01:19]} 32. Kd2 {[%clk 0:00:14]}  Qd4+ {[%clk 0:01:20]} 33. Qxd4 {[%clk 0:00:13]}  cxd4 {[%clk 0:01:21]} 0-1


[Site "https://www.chess.com"]

[Event "Titled Tuesday Blitz January 17 Early 2023"]
[White "Iskusnyh, Sergei"]
[Black "Bommini, Mounika Akshaya"]
[WhiteFideId "4120027"]
[BlackFideId "25019872"]
[WhiteElo "2440"]
[BlackElo "2118"]
[Result "1-0"]
[Round "01"]
[TimeControl "180+2"]
[Date "2023.01.17"]
[WhiteClock "0:01:36"]
[BlackClock "0:00:10"]

1. d4 {[%clk 0:02:54]}  Nf6 {[%clk 0:02:46]} 2. c4 {[%clk 0:02:54]}  c5 {[%clk 0:02:45]} 3. d5 {[%clk 0:02:53]}  e6 {[%clk 0:02:45]} 4. Nc3 {[%clk 0:02:52]}  exd5 {[%clk 0:02:44]} 5. cxd5 {[%clk 0:02:53]}  g6 {[%clk 0:02:45]} 6. Nf3 {[%clk 0:02:53]}  d6 {[%clk 0:02:45]} 7. Nd2 {[%clk 0:02:53]}  Bg7 {[%clk 0:02:44]} 8. e4 {[%clk 0:02:54]}  O-O {[%clk 0:02:41]} 9. Be2 {[%clk 0:02:54]}  a6 {[%clk 0:02:33]} 10. a4 {[%clk 0:02:52]}  Re8 {[%clk 0:01:52]} 11. O-O {[%clk 0:02:41]}  Nbd7 {[%clk 0:01:45]} 12. Re1 {[%clk 0:02:35]}  Rb8 {[%clk 0:01:35]} 13. a5 {[%clk 0:02:34]}  Ne5 {[%clk 0:01:18]} 14. Nf1 {[%clk 0:02:23]}  b5 {[%clk 0:01:12]} 15. axb6 {[%clk 0:02:23]}  Rxb6 {[%clk 0:01:05]} 16. Ne3 {[%clk 0:02:19]}  h5 {[%clk 0:00:53]} 17. h3 {[%clk 0:02:16]}  Bh6 {[%clk 0:00:50]} 18. Bf1 {[%clk 0:02:09]}  Qc7 {[%clk 0:00:40]} 19. Qc2 {[%clk 0:01:51]}  Qb8 {[%clk 0:00:25]} 20. Ra2 {[%clk 0:01:39]}  Re7 {[%clk 0:00:14]} 21. Nf5 {[%clk 0:01:35]}  Bxf5 {[%clk 0:00:12]} 22. Bxh6 {[%clk 0:01:36]}  Bd7 {[%clk 0:00:10]} 23. Bg5 {[%clk 0:01:36]} 1-0


[Site "https://www.chess.com"]

[Event "Titled Tuesday Blitz January 17 Early 2023"]
[White "Riverol, Jose"]
[Black "Aldokhin, Ivan"]
[WhiteFideId "3000427"]
[BlackFideId "24115720"]
[WhiteElo "2304"]
[BlackElo "2413"]
[Result "1/2-1/2"]
[Round "01"]
[TimeControl "180+2"]
[Date "2023.01.17"]
[WhiteClock "0:00:17"]
[BlackClock "0:00:08"]

1. d4 {[%clk 0:02:59]}  Nf6 {[%clk 0:02:58]} 2. c4 {[%clk 0:02:59]}  g6 {[%clk 0:02:29]} 3. Nc3 {[%clk 0:02:57]}  Bg7 {[%clk 0:02:24]} 4. e4 {[%clk 0:02:57]}  d6 {[%clk 0:02:24]} 5. Be2 {[%clk 0:02:57]}  O-O {[%clk 0:02:24]} 6. Nf3 {[%clk 0:02:56]}  Nc6 {[%clk 0:02:25]} 7. d5 {[%clk 0:02:56]}  Nb4 {[%clk 0:02:25]} 8. O-O {[%clk 0:02:38]}  Re8 {[%clk 0:02:25]} 9. a3 {[%clk 0:02:34]}  Na6 {[%clk 0:02:25]} 10. Qc2 {[%clk 0:02:28]}  e6 {[%clk 0:02:25]} 11. dxe6 {[%clk 0:02:25]}  Bxe6 {[%clk 0:02:26]} 12. Rd1 {[%clk 0:02:24]}  Bg4 {[%clk 0:02:20]} 13. e5 {[%clk 0:01:38]}  Bf5 {[%clk 0:02:11]} 14. Bd3 {[%clk 0:01:38]}  Bxd3 {[%clk 0:02:10]} 15. Rxd3 {[%clk 0:01:17]}  Ng4 {[%clk 0:02:09]} 16. exd6 {[%clk 0:01:10]}  cxd6 {[%clk 0:01:51]} 17. Bg5 {[%clk 0:00:51]}  Qd7 {[%clk 0:01:39]} 18. Rad1 {[%clk 0:00:46]}  Qf5 {[%clk 0:01:38]} 19. R3d2 {[%clk 0:00:33]}  Qxc2 {[%clk 0:01:32]} 20. Rxc2 {[%clk 0:00:34]}  h6 {[%clk 0:01:25]} 21. Bf4 {[%clk 0:00:30]}  Ne5 {[%clk 0:01:25]} 22. Nxe5 {[%clk 0:00:26]}  dxe5 {[%clk 0:01:24]} 23. Be3 {[%clk 0:00:26]}  f5 {[%clk 0:01:17]} 24. g3 {[%clk 0:00:22]}  g5 {[%clk 0:01:12]} 25. f3 {[%clk 0:00:22]}  Nc7 {[%clk 0:01:05]} 26. b4 {[%clk 0:00:21]}  Ne6 {[%clk 0:01:05]} 27. Nb5 {[%clk 0:00:20]}  a6 {[%clk 0:01:01]} 28. Nd6 {[%clk 0:00:20]}  Re7 {[%clk 0:01:02]} 29. Nxf5 {[%clk 0:00:20]}  Rf7 {[%clk 0:01:00]} 30. Nxg7 {[%clk 0:00:18]}  Nxg7 {[%clk 0:01:00]} 31. Kg2 {[%clk 0:00:18]}  Raf8 {[%clk 0:01:00]} 32. Rf2 {[%clk 0:00:18]}  Nf5 {[%clk 0:00:58]} 33. Bc5 {[%clk 0:00:18]}  Rc8 {[%clk 0:00:58]} 34. Rd5 {[%clk 0:00:18]}  Rc6 {[%clk 0:00:42]} 35. Re2 {[%clk 0:00:18]}  b6 {[%clk 0:00:38]} 36. Bf2 {[%clk 0:00:17]}  Rxc4 {[%clk 0:00:37]} 37. Rexe5 {[%clk 0:00:17]}  Ne7 {[%clk 0:00:30]} 38. Rd7 {[%clk 0:00:16]}  Nc6 {[%clk 0:00:27]} 39. Rxf7 {[%clk 0:00:16]}  Kxf7 {[%clk 0:00:28]} 40. Re2 {[%clk 0:00:15]}  b5 {[%clk 0:00:24]} 41. Rd2 {[%clk 0:00:14]}  Ke7 {[%clk 0:00:23]} 42. Be3 {[%clk 0:00:14]}  Rc3 {[%clk 0:00:20]} 43. Re2 {[%clk 0:00:13]}  Kf7 {[%clk 0:00:17]} 44. Bc5 {[%clk 0:00:11]}  Rxa3 {[%clk 0:00:16]} 45. Rd2 {[%clk 0:00:11]}  Rb3 {[%clk 0:00:15]} 46. Rd6 {[%clk 0:00:11]}  Nxb4 {[%clk 0:00:11]} 47. Bxb4 {[%clk 0:00:12]}  Rxb4 {[%clk 0:00:11]} 48. Rxa6 {[%clk 0:00:12]}  Kg7 {[%clk 0:00:09]} 49. Kh3 {[%clk 0:00:12]}  h5 {[%clk 0:00:09]} 50. Rb6 {[%clk 0:00:12]}  g4+ {[%clk 0:00:08]} 51. fxg4 {[%clk 0:00:12]}  hxg4+ {[%clk 0:00:08]} 52. Kh4 {[%clk 0:00:12]}  Kf7 {[%clk 0:00:07]} 53. h3 {[%clk 0:00:13]}  gxh3+ {[%clk 0:00:07]} 54. Kxh3 {[%clk 0:00:13]}  Kg7 {[%clk 0:00:08]} 55. g4 {[%clk 0:00:14]}  Kf7 {[%clk 0:00:08]} 56. Kh4 {[%clk 0:00:14]}  Kg7 {[%clk 0:00:08]} 57. Kh5 {[%clk 0:00:14]}  Rb1 {[%clk 0:00:09]} 58. g5 {[%clk 0:00:14]}  Rh1+ {[%clk 0:00:09]} 59. Kg4 {[%clk 0:00:15]}  Rg1+ {[%clk 0:00:09]} 60. Kf5 {[%clk 0:00:15]}  Rf1+ {[%clk 0:00:09]} 61. Ke5 {[%clk 0:00:16]}  Re1+ {[%clk 0:00:09]} 62. Kd5 {[%clk 0:00:16]}  Rg1 {[%clk 0:00:09]} 63. Rxb5 {[%clk 0:00:15]}  Rxg5+ {[%clk 0:00:08]} 64. Kc4 {[%clk 0:00:16]}  Rxb5 {[%clk 0:00:08]} 65. Kxb5 {[%clk 0:00:17]} 1/2-1/2


[Site "https://www.chess.com"]

[Event "Titled Tuesday Blitz January 17 Early 2023"]
[White "Yelisieiev, Yevhenii"]
[Black "Benmesbah, Natacha"]
[WhiteFideId "14139642"]
[BlackFideId "642002"]
[WhiteElo "2418"]
[BlackElo "2261"]
[Result "0-1"]
[Round "01"]
[TimeControl "180+2"]
[Date "2023.01.17"]
[WhiteClock "0:00:01"]
[BlackClock "0:00:27"]

1. d4 {[%clk 0:02:57]}  d6 {[%clk 0:02:57]} 2. Nf3 {[%clk 0:02:57]}  Nf6 {[%clk 0:02:55]} 3. g3 {[%clk 0:02:57]}  g6 {[%clk 0:02:53]} 4. Bg2 {[%clk 0:02:57]}  Bg7 {[%clk 0:02:54]} 5. O-O {[%clk 0:02:58]}  O-O {[%clk 0:02:54]} 6. b3 {[%clk 0:02:58]}  c6 {[%clk 0:02:48]} 7. Bb2 {[%clk 0:02:58]}  d5 {[%clk 0:02:48]} 8. c4 {[%clk 0:02:56]}  Bf5 {[%clk 0:02:47]} 9. Nc3 {[%clk 0:02:55]}  Ne4 {[%clk 0:02:47]} 10. Nh4 {[%clk 0:02:50]}  Nxc3 {[%clk 0:02:46]} 11. Bxc3 {[%clk 0:02:50]}  Be6 {[%clk 0:02:43]} 12. e4 {[%clk 0:02:46]}  dxc4 {[%clk 0:02:37]} 13. bxc4 {[%clk 0:02:37]}  Bxc4 {[%clk 0:02:37]} 14. Re1 {[%clk 0:02:37]}  Nd7 {[%clk 0:02:33]} 15. a4 {[%clk 0:02:26]}  c5 {[%clk 0:02:23]} 16. e5 {[%clk 0:02:21]}  cxd4 {[%clk 0:02:15]} 17. Qxd4 {[%clk 0:02:16]}  Ba6 {[%clk 0:02:11]} 18. Rab1 {[%clk 0:02:11]}  Nb6 {[%clk 0:02:05]} 19. a5 {[%clk 0:02:09]}  Qxd4 {[%clk 0:01:55]} 20. Bxd4 {[%clk 0:02:08]}  Nc4 {[%clk 0:01:56]} 21. Bxb7 {[%clk 0:01:54]}  Bxb7 {[%clk 0:01:55]} 22. Rxb7 {[%clk 0:01:54]}  Nxa5 {[%clk 0:01:56]} 23. Rxe7 {[%clk 0:01:45]}  Nc6 {[%clk 0:01:55]} 24. Rd7 {[%clk 0:01:41]}  Nxd4 {[%clk 0:01:51]} 25. Rxd4 {[%clk 0:01:41]}  Rfd8 {[%clk 0:01:45]} 26. Ra4 {[%clk 0:01:35]}  Re8 {[%clk 0:01:40]} 27. f4 {[%clk 0:01:32]}  Bf8 {[%clk 0:01:33]} 28. Rc1 {[%clk 0:01:05]}  Rec8 {[%clk 0:01:32]} 29. Re1 {[%clk 0:00:54]}  Rc2 {[%clk 0:01:29]} 30. f5 {[%clk 0:00:48]}  Bc5+ {[%clk 0:01:29]} 31. Kh1 {[%clk 0:00:48]}  gxf5 {[%clk 0:01:13]} 32. Nxf5 {[%clk 0:00:46]}  Rd8 {[%clk 0:01:12]} 33. Rh4 {[%clk 0:00:20]}  a5 {[%clk 0:00:54]} 34. Rf1 {[%clk 0:00:18]}  Rf2 {[%clk 0:00:48]} 35. Rg4+ {[%clk 0:00:13]}  Kf8 {[%clk 0:00:46]} 36. Rxf2 {[%clk 0:00:13]}  Bxf2 {[%clk 0:00:47]} 37. Ra4 {[%clk 0:00:13]}  Be1 {[%clk 0:00:45]} 38. Kg2 {[%clk 0:00:12]}  Rd5 {[%clk 0:00:44]} 39. Re4 {[%clk 0:00:11]}  Bc3 {[%clk 0:00:42]} 40. Nd6 {[%clk 0:00:03]}  Bxe5 {[%clk 0:00:39]} 41. Nc4 {[%clk 0:00:03]}  Bc3 {[%clk 0:00:38]} 42. Re3 {[%clk 0:00:03]}  Bb4 {[%clk 0:00:37]} 43. Kf3 {[%clk 0:00:04]}  a4 {[%clk 0:00:35]} 44. Nb6 {[%clk 0:00:04]}  Rf5+ {[%clk 0:00:33]} 45. Kg4 {[%clk 0:00:03]}  Rb5 {[%clk 0:00:32]} 46. Nd7+ {[%clk 0:00:03]}  Kg7 {[%clk 0:00:32]} 47. Re2 {[%clk 0:00:02]}  a3 {[%clk 0:00:31]} 48. Ra2 {[%clk 0:00:02]}  Bd6 {[%clk 0:00:30]} 49. h4 {[%clk 0:00:01]}  Rb2 {[%clk 0:00:29]} 50. Ra1 {[%clk 0:00:02]}  a2 {[%clk 0:00:29]} 51. Nc5 {[%clk 0:00:01]}  Bxc5 {[%clk 0:00:27]} 0-1


[Site "https://www.chess.com"]

[Event "Titled Tuesday Blitz January 17 Early 2023"]
[White "Cueto, Jonny"]
[Black "Odegov, Artem"]
[WhiteFideId "3300145"]
[BlackFideId "34183644"]
[WhiteElo "2122"]
[BlackElo "2261"]
[Result "0-1"]
[Round "01"]
[TimeControl "180+2"]
[Date "2023.01.17"]
[WhiteClock "0:00:02"]
[BlackClock "0:00:11"]

1. d4 {[%clk 0:02:59]}  Nf6 {[%clk 0:02:54]} 2. Bf4 {[%clk 0:03:00]}  g6 {[%clk 0:02:53]} 3. Nc3 {[%clk 0:02:59]}  Bg7 {[%clk 0:02:54]} 4. e4 {[%clk 0:03:00]}  d6 {[%clk 0:02:54]} 5. Qd2 {[%clk 0:03:00]}  O-O {[%clk 0:02:54]} 6. O-O-O {[%clk 0:03:00]}  Re8 {[%clk 0:02:55]} 7. Bh6 {[%clk 0:03:00]}  Bh8 {[%clk 0:02:55]} 8. h4 {[%clk 0:03:01]}  Nbd7 {[%clk 0:02:54]} 9. h5 {[%clk 0:03:01]}  e5 {[%clk 0:02:55]} 10. hxg6 {[%clk 0:02:57]}  hxg6 {[%clk 0:02:54]} 11. d5 {[%clk 0:02:55]}  Nf8 {[%clk 0:02:48]} 12. Bg5 {[%clk 0:01:43]}  N8h7 {[%clk 0:02:45]} 13. Nf3 {[%clk 0:01:25]}  Bg4 {[%clk 0:02:42]} 14. Be2 {[%clk 0:01:22]}  Qd7 {[%clk 0:02:29]} 15. Bxf6 {[%clk 0:01:10]}  Bxf6 {[%clk 0:02:16]} 16. Qh6 {[%clk 0:00:45]}  Nf8 {[%clk 0:02:15]} 17. Ng5 {[%clk 0:00:44]}  Bg7 {[%clk 0:02:15]} 18. Qh4 {[%clk 0:00:24]}  Bxe2 {[%clk 0:02:13]} 19. Nxe2 {[%clk 0:00:23]}  f6 {[%clk 0:02:14]} 20. Nh7 {[%clk 0:00:22]}  Nxh7 {[%clk 0:02:13]} 21. Qxh7+ {[%clk 0:00:22]}  Kf7 {[%clk 0:02:13]} 22. Qh3 {[%clk 0:00:17]}  Qxh3 {[%clk 0:02:06]} 23. Rxh3 {[%clk 0:00:18]}  Rh8 {[%clk 0:02:04]} 24. Rdh1 {[%clk 0:00:15]}  f5 {[%clk 0:02:01]} 25. f3 {[%clk 0:00:12]}  c6 {[%clk 0:01:46]} 26. Rxh8 {[%clk 0:00:08]}  Bxh8 {[%clk 0:01:46]} 27. c4 {[%clk 0:00:08]}  c5 {[%clk 0:01:38]} 28. Kc2 {[%clk 0:00:09]}  a6 {[%clk 0:01:38]} 29. b3 {[%clk 0:00:07]}  Bf6 {[%clk 0:01:36]} 30. Nc1 {[%clk 0:00:07]}  b5 {[%clk 0:01:36]} 31. Rh7+ {[%clk 0:00:06]}  Bg7 {[%clk 0:01:36]} 32. Rh1 {[%clk 0:00:06]}  Kf6 {[%clk 0:01:25]} 33. Ne2 {[%clk 0:00:06]}  Kg5 {[%clk 0:01:22]} 34. Kd2 {[%clk 0:00:05]}  Rb8 {[%clk 0:01:10]} 35. Kc3 {[%clk 0:00:03]}  Kf6 {[%clk 0:01:07]} 36. Ng3 {[%clk 0:00:03]}  Kg5 {[%clk 0:00:55]} 37. Rh7 {[%clk 0:00:02]}  Rb7 {[%clk 0:00:53]} 38. Ne2 {[%clk 0:00:02]}  Ra7 {[%clk 0:00:29]} 39. Nc1 {[%clk 0:00:02]}  Kf4 {[%clk 0:00:26]} 40. Kd2 {[%clk 0:00:01]}  Kg3 {[%clk 0:00:24]} 41. exf5 {[%clk 0:00:01]}  gxf5 {[%clk 0:00:23]} 42. Rh5 {[%clk 0:00:02]}  Rf7 {[%clk 0:00:19]} 43. Rg5+ {[%clk 0:00:02]}  Kh4 {[%clk 0:00:13]} 44. Rg6 {[%clk 0:00:02]}  Bf6 {[%clk 0:00:13]} 45. Ne2 {[%clk 0:00:02]}  Kh5 {[%clk 0:00:13]} 46. Rg8 {[%clk 0:00:02]}  Bg5+ {[%clk 0:00:12]} 47. Ke1 {[%clk 0:00:02]}  bxc4 {[%clk 0:00:12]} 48. bxc4 {[%clk 0:00:01]}  Rb7 {[%clk 0:00:12]} 49. Ra8 {[%clk 0:00:02]}  Be3 {[%clk 0:00:11]} 0-1


[Site "https://www.chess.com"]

[Event "Titled Tuesday Blitz January 17 Early 2023"]
[White "Ginzburg, Yakov"]
[Black "Nordquelle, Daniel"]
[WhiteFideId "4157176"]
[BlackFideId "1519042"]
[WhiteElo "2405"]
[BlackElo "2151"]
[Result "1-0"]
[Round "01"]
[TimeControl "180+2"]
[Date "2023.01.17"]
[WhiteClock "0:00:05"]
[BlackClock "0:00:03"]

1. e4 {[%clk 0:02:59]}  c5 {[%clk 0:03:00]} 2. Nf3 {[%clk 0:02:59]}  d6 {[%clk 0:03:00]} 3. c3 {[%clk 0:02:57]}  Nf6 {[%clk 0:02:56]} 4. Be2 {[%clk 0:02:51]}  b6 {[%clk 0:02:55]} 5. O-O {[%clk 0:02:50]}  Bb7 {[%clk 0:02:54]} 6. e5 {[%clk 0:02:50]}  dxe5 {[%clk 0:02:53]} 7. Nxe5 {[%clk 0:02:50]}  Nbd7 {[%clk 0:02:46]} 8. d4 {[%clk 0:02:44]}  e6 {[%clk 0:02:43]} 9. Bf3 {[%clk 0:02:41]}  Qc8 {[%clk 0:02:16]} 10. Bg5 {[%clk 0:02:28]}  Bd6 {[%clk 0:02:05]} 11. Nc4 {[%clk 0:02:21]}  Bb8 {[%clk 0:01:57]} 12. Bxb7 {[%clk 0:01:57]}  Qxb7 {[%clk 0:01:56]} 13. dxc5 {[%clk 0:01:57]}  Nxc5 {[%clk 0:01:53]} 14. Bxf6 {[%clk 0:01:50]}  gxf6 {[%clk 0:01:51]} 15. Nbd2 {[%clk 0:01:32]}  Rg8 {[%clk 0:01:22]} 16. Qf3 {[%clk 0:01:31]}  Qxf3 {[%clk 0:00:54]} 17. Nxf3 {[%clk 0:01:32]}  Ke7 {[%clk 0:00:53]} 18. Rad1 {[%clk 0:01:22]}  Bc7 {[%clk 0:00:37]} 19. Nd4 {[%clk 0:01:21]}  a6 {[%clk 0:00:34]} 20. Nc6+ {[%clk 0:01:18]}  Ke8 {[%clk 0:00:31]} 21. Rfe1 {[%clk 0:01:08]}  Rc8 {[%clk 0:00:29]} 22. Na7 {[%clk 0:00:42]}  Ra8 {[%clk 0:00:29]} 23. Nc6 {[%clk 0:00:42]}  Rc8 {[%clk 0:00:29]} 24. b4 {[%clk 0:00:30]}  Na4 {[%clk 0:00:28]} 25. Rd3 {[%clk 0:00:30]}  b5 {[%clk 0:00:23]} 26. Nd6+ {[%clk 0:00:27]}  Bxd6 {[%clk 0:00:23]} 27. Rxd6 {[%clk 0:00:27]}  Nxc3 {[%clk 0:00:24]} 28. Re3 {[%clk 0:00:23]}  Na4 {[%clk 0:00:22]} 29. Red3 {[%clk 0:00:20]}  Kf8 {[%clk 0:00:21]} 30. h4 {[%clk 0:00:17]}  Rg4 {[%clk 0:00:17]} 31. h5 {[%clk 0:00:18]}  Rc4 {[%clk 0:00:17]} 32. Rd8+ {[%clk 0:00:11]}  Rxd8 {[%clk 0:00:16]} 33. Rxd8+ {[%clk 0:00:12]}  Kg7 {[%clk 0:00:17]} 34. Ne7 {[%clk 0:00:13]}  Rxb4 {[%clk 0:00:15]} 35. Rg8+ {[%clk 0:00:13]}  Kh6 {[%clk 0:00:16]} 36. g4 {[%clk 0:00:12]}  Nc5 {[%clk 0:00:13]} 37. Nc6 {[%clk 0:00:12]}  Rf4 {[%clk 0:00:12]} 38. Kg2 {[%clk 0:00:12]}  Ne4 {[%clk 0:00:11]} 39. f3 {[%clk 0:00:12]}  Nd2 {[%clk 0:00:11]} 40. Kg3 {[%clk 0:00:10]}  Rxf3+ {[%clk 0:00:12]} 41. Kh4 {[%clk 0:00:11]}  Rf4 {[%clk 0:00:12]} 42. Ne7 {[%clk 0:00:09]}  f5 {[%clk 0:00:11]} 43. Kg3 {[%clk 0:00:07]}  Rxg4+ {[%clk 0:00:11]} 44. Rxg4 {[%clk 0:00:08]}  fxg4 {[%clk 0:00:12]} 45. Kxg4 {[%clk 0:00:08]}  Kg7 {[%clk 0:00:11]} 46. Kg5 {[%clk 0:00:08]}  Nc4 {[%clk 0:00:10]} 47. h6+ {[%clk 0:00:08]}  Kf8 {[%clk 0:00:10]} 48. Kf6 {[%clk 0:00:08]}  b4 {[%clk 0:00:09]} 49. Nc6 {[%clk 0:00:08]}  Nd6 {[%clk 0:00:08]} 50. Nxb4 {[%clk 0:00:08]}  a5 {[%clk 0:00:08]} 51. Nc6 {[%clk 0:00:08]}  a4 {[%clk 0:00:08]} 52. Nd4 {[%clk 0:00:06]}  Ne8+ {[%clk 0:00:05]} 53. Ke5 {[%clk 0:00:06]}  Ke7 {[%clk 0:00:05]} 54. Nc6+ {[%clk 0:00:07]}  Kd7 {[%clk 0:00:05]} 55. Nd4 {[%clk 0:00:05]}  f6+ {[%clk 0:00:05]} 56. Ke4 {[%clk 0:00:06]}  Kd6 {[%clk 0:00:04]} 57. Nf3 {[%clk 0:00:06]}  Nc7 {[%clk 0:00:04]} 58. Kf4 {[%clk 0:00:06]}  Kd5 {[%clk 0:00:03]} 59. Ke3 {[%clk 0:00:04]}  Nb5 {[%clk 0:00:03]} 60. Nh2 {[%clk 0:00:05]}  f5 {[%clk 0:00:03]} 61. Nf3 {[%clk 0:00:05]} 1-0


[Site "https://www.chess.com"]

[Event "Titled Tuesday Blitz January 17 Early 2023"]
[White "Guzman, Christopher"]
[Black "Jenkins, Drake"]
[WhiteFideId "6405096"]
[BlackFideId "2022397"]
[WhiteElo "2271"]
[BlackElo "2130"]
[Result "1-0"]
[Round "01"]
[TimeControl "180+2"]
[Date "2023.01.17"]
[WhiteClock "0:01:30"]
[BlackClock "0:00:07"]

1. e4 {[%clk 0:02:59]}  c5 {[%clk 0:02:57]} 2. Nf3 {[%clk 0:02:59]}  g6 {[%clk 0:02:57]} 3. d4 {[%clk 0:02:58]}  cxd4 {[%clk 0:02:58]} 4. Nxd4 {[%clk 0:02:58]}  Nf6 {[%clk 0:02:58]} 5. Nc3 {[%clk 0:02:47]}  h5 {[%clk 0:02:52]} 6. Be2 {[%clk 0:02:44]}  Bg7 {[%clk 0:02:41]} 7. Be3 {[%clk 0:02:44]}  Nc6 {[%clk 0:02:40]} 8. Qd2 {[%clk 0:02:44]}  d5 {[%clk 0:02:34]} 9. exd5 {[%clk 0:02:42]}  Nxd5 {[%clk 0:02:34]} 10. Nxd5 {[%clk 0:02:42]}  Qxd5 {[%clk 0:02:33]} 11. Bf3 {[%clk 0:02:42]}  Qc4 {[%clk 0:02:07]} 12. b3 {[%clk 0:02:39]}  Qa6 {[%clk 0:01:54]} 13. Nxc6 {[%clk 0:02:13]}  bxc6 {[%clk 0:01:50]} 14. Bd4 {[%clk 0:02:13]}  e5 {[%clk 0:01:36]} 15. Bc5 {[%clk 0:02:11]}  e4 {[%clk 0:00:44]} 16. Qd6 {[%clk 0:01:50]}  Bc3+ {[%clk 0:00:43]} 17. Kd1 {[%clk 0:01:46]}  Qb7 {[%clk 0:00:38]} 18. Bd4 {[%clk 0:01:38]}  Be6 {[%clk 0:00:19]} 19. Bxe4 {[%clk 0:01:32]}  Rd8 {[%clk 0:00:08]} 20. Bxc6+ {[%clk 0:01:30]}  Qxc6 {[%clk 0:00:07]} 21. Qxc6+ {[%clk 0:01:30]} 1-0


[Site "https://www.chess.com"]